[Event "Late-Titled-Tuesday-Blitz-February-13-2024"]
[Site "Chess.com"]
[Date "2024.02.13"]
[Round "6"]
[White "N_I_Chess"]
[Black "BozeKat"]
[Result "0-1"]
[WhiteElo "2280"]
[BlackElo "2053"]
[TimeControl "180+1"]
[EndTime "15:08:03 PST"]
[Termination "BozeKat won by resignation"]

1. d4 {[%clk 0:02:57.9]} 1... d5 {[%clk 0:02:59.5]} 2. c4 {[%clk 0:02:54.5]}
2... e6 {[%clk 0:02:58.9]} 3. Nc3 {[%clk 0:02:53.7]} 3... Nf6 {[%clk 0:02:58.9]}
4. cxd5 {[%clk 0:02:50.7]} 4... exd5 {[%clk 0:02:58.5]} 5. Bg5 {[%clk
0:02:50.2]} 5... Be7 {[%clk 0:02:58.5]} 6. e3 {[%clk 0:02:33.6]} 6... O-O {[%clk
0:02:53.7]} 7. Bd3 {[%clk 0:02:30.6]} 7... c6 {[%clk 0:02:53.4]} 8. Qc2 {[%clk
0:02:26.8]} 8... Nbd7 {[%clk 0:02:53.4]} 9. Nge2 {[%clk 0:02:25.7]} 9... Re8
{[%clk 0:02:51.1]} 10. O-O {[%clk 0:02:24.4]} 10... Ne4 {[%clk 0:02:50.5]} 11.
Bxe7 {[%clk 0:02:23.2]} 11... Qxe7 {[%clk 0:02:51.4]} 12. Rae1 {[%clk
0:02:23.8]} 12... Ndf6 {[%clk 0:02:47.3]} 13. f3 {[%clk 0:02:23.7]} 13... Nxc3
{[%clk 0:02:33.3]} 14. Nxc3 {[%clk 0:02:24.6]} 14... Qb4 {[%clk 0:02:28.6]} 15.
a3 {[%clk 0:02:21.6]} 15... Qb6 {[%clk 0:02:08.9]} 16. Qf2 {[%clk 0:02:12.7]}
16... c5 {[%clk 0:01:59.9]} 17. Na4 {[%clk 0:02:06]} 17... Qa5 {[%clk
0:01:36.4]} 18. Nxc5 {[%clk 0:02:04.3]} 18... b6 {[%clk 0:01:35.7]} 19. b4
{[%clk 0:01:37.2]} 19... Qxa3 {[%clk 0:01:34.8]} 20. Ra1 {[%clk 0:01:34.1]}
20... Qxb4 {[%clk 0:01:33.3]} 21. Rfb1 {[%clk 0:01:27.5]} 21... bxc5 {[%clk
0:01:28.7]} 22. Rxb4 {[%clk 0:01:26.1]} 22... cxb4 {[%clk 0:01:29.6]} 23. Ra5
{[%clk 0:01:22.5]} 23... Be6 {[%clk 0:01:21.8]} 24. Qa2 {[%clk 0:00:58.3]} 24...
Rec8 {[%clk 0:00:53.8]} 25. Rxa7 {[%clk 0:00:50.4]} 25... Rab8 {[%clk
0:00:50.9]} 26. Qb2 {[%clk 0:00:37]} 26... Rc3 {[%clk 0:00:46]} 27. Bb1 {[%clk
0:00:15.3]} 27... g6 {[%clk 0:00:43.6]} 28. Kf2 {[%clk 0:00:14.3]} 28... Nd7
{[%clk 0:00:28]} 29. Ra5 {[%clk 0:00:11.5]} 29... Nf6 {[%clk 0:00:17.2]} 30. Ra4
{[%clk 0:00:11.3]} 30... Rc4 {[%clk 0:00:14.3]} 31. Bd3 {[%clk 0:00:11.6]} 31...
Bd7 {[%clk 0:00:13.8]} 32. Bxc4 {[%clk 0:00:11.6]} 32... Bxa4 {[%clk 0:00:13.6]}
33. Bb3 {[%clk 0:00:12]} 33... Bb5 {[%clk 0:00:13.1]} 34. Qa2 {[%clk 0:00:12]}
34... Bc6 {[%clk 0:00:09.7]} 35. g4 {[%clk 0:00:12.1]} 35... Nd7 {[%clk
0:00:09]} 36. Bxd5 {[%clk 0:00:11.7]} 36... Bxd5 {[%clk 0:00:06.9]} 37. Qxd5
{[%clk 0:00:12.6]} 37... b3 {[%clk 0:00:05.8]} 38. Qe4 {[%clk 0:00:13.3]} 38...
b2 {[%clk 0:00:05.9]} 39. Qb1 {[%clk 0:00:12]} 39... Nf6 {[%clk 0:00:03.7]} 40.
e4 {[%clk 0:00:11.5]} 40... Ne8 {[%clk 0:00:04.1]} 41. Ke3 {[%clk 0:00:09.7]}
41... Nd6 {[%clk 0:00:04.5]} 42. Kd3 {[%clk 0:00:10.3]} 42... Rb3+ {[%clk
0:00:03.9]} 43. Kc2 {[%clk 0:00:10.6]} 43... Rb4 {[%clk 0:00:04.7]} 44. d5
{[%clk 0:00:07.5]} 44... Nb5 {[%clk 0:00:05]} 45. d6 {[%clk 0:00:06.4]} 45...
Na3+ {[%clk 0:00:04.8]} 46. Kc3 {[%clk 0:00:05.5]} 46... Nxb1+ {[%clk
0:00:04.5]} 47. Kxb4 {[%clk 0:00:05]} 47... Nd2 {[%clk 0:00:05.2]} 48. d7 {[%clk
0:00:03.5]} 48... b1=Q+ {[%clk 0:00:06.1]} 49. Kc3 {[%clk 0:00:03.8]} 49... Qb8
{[%clk 0:00:06.3]} 50. Kxd2 {[%clk 0:00:04.7]} 50... Qd8 {[%clk 0:00:06.6]} 51.
Ke3 {[%clk 0:00:05.6]} 51... Qxd7 {[%clk 0:00:07.1]} 52. Kf2 {[%clk 0:00:06.5]}
52... Kg7 {[%clk 0:00:07.1]} 53. Kg3 {[%clk 0:00:07.1]} 53... Qd6+ {[%clk
0:00:07.6]} 54. e5 {[%clk 0:00:07.4]} 54... Qxe5+ {[%clk 0:00:08]} 55. Kh3
{[%clk 0:00:08.3]} 55... Qf4 {[%clk 0:00:08.2]} 56. Kg2 {[%clk 0:00:09]} 56...
h5 {[%clk 0:00:08.6]} 57. gxh5 {[%clk 0:00:09.2]} 57... gxh5 {[%clk 0:00:09.5]}
58. h4 {[%clk 0:00:09.4]} 58... Qxh4 {[%clk 0:00:09.1]} 59. f4 {[%clk
0:00:10.3]} 59... Qxf4 {[%clk 0:00:09.4]} 0-1

[Event "Late-Titled-Tuesday-Blitz-February-13-2024"]
[Site "Chess.com"]
[Date "2024.02.13"]
[Round "6"]
[White "KarolKacprzak"]
[Black "kuli4ik"]
[Result "1-0"]
[WhiteElo "2740"]
[BlackElo "2850"]
[TimeControl "180+1"]
[EndTime "15:08:09 PST"]
[Termination "KarolKacprzak won by resignation"]

1. e4 {[%clk 0:03:00.6]} 1... g6 {[%clk 0:02:57.8]} 2. d4 {[%clk 0:03:00.2]}
2... Bg7 {[%clk 0:02:57.4]} 3. Nf3 {[%clk 0:02:59.3]} 3... d6 {[%clk 0:02:57.1]}
4. Nc3 {[%clk 0:02:59.1]} 4... a6 {[%clk 0:02:57.2]} 5. a4 {[%clk 0:02:58.6]}
5... Nf6 {[%clk 0:02:56]} 6. Be2 {[%clk 0:02:57.3]} 6... O-O {[%clk 0:02:55.1]}
7. O-O {[%clk 0:02:57.2]} 7... Nc6 {[%clk 0:02:53.4]} 8. h3 {[%clk 0:02:57]}
8... e5 {[%clk 0:02:50.8]} 9. dxe5 {[%clk 0:02:55.8]} 9... dxe5 {[%clk 0:02:51]}
10. Be3 {[%clk 0:02:54.9]} 10... Be6 {[%clk 0:02:50]} 11. Ng5 {[%clk 0:02:50.7]}
11... Qe7 {[%clk 0:02:49]} 12. Nxe6 {[%clk 0:02:49.4]} 12... fxe6 {[%clk
0:02:48.9]} 13. Bc4 {[%clk 0:02:48.8]} 13... Nh5 {[%clk 0:02:46.6]} 14. Qg4
{[%clk 0:02:35.8]} 14... Rae8 {[%clk 0:02:40.8]} 15. g3 {[%clk 0:02:30.2]} 15...
Nf6 {[%clk 0:02:22.9]} 16. Qh4 {[%clk 0:02:20.8]} 16... Rd8 {[%clk 0:02:19.7]}
17. Rad1 {[%clk 0:02:19.4]} 17... Rxd1 {[%clk 0:02:14.5]} 18. Rxd1 {[%clk
0:02:20.3]} 18... Rd8 {[%clk 0:02:14.2]} 19. Rxd8+ {[%clk 0:02:18.2]} 19... Nxd8
{[%clk 0:02:15.1]} 20. g4 {[%clk 0:02:09.7]} 20... Nf7 {[%clk 0:01:53.2]} 21. g5
{[%clk 0:02:02.8]} 21... Ne8 {[%clk 0:01:30.8]} 22. Qg4 {[%clk 0:02:02]} 22...
Nd8 {[%clk 0:01:30.2]} 23. h4 {[%clk 0:01:52.3]} 23... Qf7 {[%clk 0:01:26.3]}
24. a5 {[%clk 0:01:46.7]} 24... Bf8 {[%clk 0:01:26.3]} 25. Na4 {[%clk
0:01:38.6]} 25... Ng7 {[%clk 0:01:22.7]} 26. Qd1 {[%clk 0:01:26.6]} 26... Qe8
{[%clk 0:01:17.9]} 27. b3 {[%clk 0:01:18.6]} 27... Nc6 {[%clk 0:01:12.2]} 28.
Qd2 {[%clk 0:01:10]} 28... Nh5 {[%clk 0:01:02.3]} 29. Nb2 {[%clk 0:01:09.7]}
29... Bd6 {[%clk 0:00:54]} 30. Nd3 {[%clk 0:01:07.8]} 30... Qe7 {[%clk
0:00:50.5]} 31. Kg2 {[%clk 0:01:00.3]} 31... Kf7 {[%clk 0:00:39.7]} 32. Qc3
{[%clk 0:01:00.1]} 32... Ke8 {[%clk 0:00:34.2]} 33. Bxa6 {[%clk 0:00:55.4]}
33... Nxa5 {[%clk 0:00:26.4]} 34. Qxa5 {[%clk 0:00:55.3]} 34... bxa6 {[%clk
0:00:26.7]} 35. Qxa6 {[%clk 0:00:55.4]} 35... Kf7 {[%clk 0:00:19.4]} 36. c4
{[%clk 0:00:52.1]} 36... Nf4+ {[%clk 0:00:17.4]} 37. Bxf4 {[%clk 0:00:47.6]}
37... exf4 {[%clk 0:00:17.7]} 38. Qc6 {[%clk 0:00:44.7]} 38... Ba3 {[%clk
0:00:14]} 39. Kf3 {[%clk 0:00:39.2]} 39... Qd8 {[%clk 0:00:10.1]} 40. Ne5+
{[%clk 0:00:37.1]} 40... Ke7 {[%clk 0:00:08.3]} 41. Ke2 {[%clk 0:00:29.5]} 41...
Bd6 {[%clk 0:00:04.4]} 42. Nd3 {[%clk 0:00:25.4]} 42... f3+ {[%clk 0:00:05.3]}
43. Ke3 {[%clk 0:00:20.6]} 43... Bh2 {[%clk 0:00:04.6]} 44. e5 {[%clk
0:00:19.3]} 44... Qb8 {[%clk 0:00:03.4]} 45. b4 {[%clk 0:00:17.7]} 45... Qa7+
{[%clk 0:00:03.6]} 46. Qc5+ {[%clk 0:00:12.5]} 46... Qxc5+ {[%clk 0:00:03.4]}
47. bxc5 {[%clk 0:00:13.4]} 47... Kd7 {[%clk 0:00:03.1]} 48. Kxf3 {[%clk
0:00:12.2]} 48... Kc6 {[%clk 0:00:03.2]} 49. Ke4 {[%clk 0:00:12.8]} 49... Bg1
{[%clk 0:00:02.9]} 50. Kf3 {[%clk 0:00:11.2]} 50... Bh2 {[%clk 0:00:02.3]} 51.
Kg2 {[%clk 0:00:11.6]} 51... Bxe5 {[%clk 0:00:02.8]} 52. Nxe5+ {[%clk
0:00:12.4]} 52... Kxc5 {[%clk 0:00:03.7]} 53. f4 {[%clk 0:00:11.3]} 53... Kd4
{[%clk 0:00:04.2]} 54. Kf3 {[%clk 0:00:11.9]} 54... c5 {[%clk 0:00:04.2]} 55.
Ng4 {[%clk 0:00:08.2]} 55... Kxc4 {[%clk 0:00:05.1]} 56. Nf6 {[%clk 0:00:09.1]}
56... Kd4 {[%clk 0:00:05.1]} 57. Nxh7 {[%clk 0:00:05.7]} 57... c4 {[%clk
0:00:06]} 58. Ke2 {[%clk 0:00:06.3]} 58... Kc3 {[%clk 0:00:06.2]} 59. Nf6 {[%clk
0:00:05.6]} 59... Kb2 {[%clk 0:00:06.7]} 60. Ne4 {[%clk 0:00:05.3]} 60... c3
{[%clk 0:00:07.6]} 61. Nxc3 {[%clk 0:00:05.8]} 61... Kb3 {[%clk 0:00:08.5]} 62.
h5 {[%clk 0:00:06.5]} 62... gxh5 {[%clk 0:00:08.5]} 63. g6 {[%clk 0:00:07]}
63... Kxc3 {[%clk 0:00:09.3]} 64. g7 {[%clk 0:00:07.6]} 64... h4 {[%clk
0:00:10]} 65. g8=Q {[%clk 0:00:08.2]} 65... h3 {[%clk 0:00:10.9]} 66. Qg3+
{[%clk 0:00:08.3]} 1-0

[Event "Late-Titled-Tuesday-Blitz-February-13-2024"]
[Site "Chess.com"]
[Date "2024.02.13"]
[Round "6"]
[White "dropstoneDP"]
[Black "LiamPutnam2008"]
[Result "1-0"]
[WhiteElo "3045"]
[BlackElo "2849"]
[TimeControl "180+1"]
[EndTime "15:08:11 PST"]
[Termination "dropstoneDP won by resignation"]

1. e4 {[%clk 0:03:00.9]} 1... c5 {[%clk 0:02:58.7]} 2. Nf3 {[%clk 0:03:01.2]}
2... d6 {[%clk 0:02:58.9]} 3. d4 {[%clk 0:03:01.5]} 3... cxd4 {[%clk 0:02:59.8]}
4. Nxd4 {[%clk 0:03:02.2]} 4... Nf6 {[%clk 0:03:00.3]} 5. Nc3 {[%clk 0:03:02.5]}
5... a6 {[%clk 0:03:00.7]} 6. Bd3 {[%clk 0:03:01.5]} 6... e5 {[%clk 0:03:00]} 7.
Nde2 {[%clk 0:02:59.9]} 7... Be7 {[%clk 0:03:00.2]} 8. O-O {[%clk 0:02:59.6]}
8... O-O {[%clk 0:03:00.1]} 9. Ng3 {[%clk 0:02:59.8]} 9... Be6 {[%clk
0:02:59.9]} 10. Nd5 {[%clk 0:02:57]} 10... Bxd5 {[%clk 0:02:55.4]} 11. exd5
{[%clk 0:02:57.9]} 11... Re8 {[%clk 0:02:55.2]} 12. a4 {[%clk 0:02:56.2]} 12...
Nbd7 {[%clk 0:02:43.9]} 13. a5 {[%clk 0:02:52.9]} 13... g6 {[%clk 0:02:39.9]}
14. c4 {[%clk 0:02:51.4]} 14... Bf8 {[%clk 0:02:33.4]} 15. b4 {[%clk 0:02:49.5]}
15... Rc8 {[%clk 0:02:33.1]} 16. Be3 {[%clk 0:02:46.9]} 16... Bg7 {[%clk
0:02:24.3]} 17. Rc1 {[%clk 0:02:46.3]} 17... h5 {[%clk 0:02:18.7]} 18. h3 {[%clk
0:02:43.2]} 18... e4 {[%clk 0:02:09.9]} 19. Bb1 {[%clk 0:02:41.1]} 19... Ne5
{[%clk 0:02:09.2]} 20. c5 {[%clk 0:02:40.9]} 20... dxc5 {[%clk 0:02:07.6]} 21.
Bxc5 {[%clk 0:02:37]} 21... Nd3 {[%clk 0:01:42.8]} 22. Bxd3 {[%clk 0:02:34.5]}
22... exd3 {[%clk 0:01:43.7]} 23. Qxd3 {[%clk 0:02:32.5]} 23... Qxd5 {[%clk
0:01:43.5]} 24. Rfd1 {[%clk 0:02:23.9]} 24... Qxd3 {[%clk 0:01:38.3]} 25. Rxd3
{[%clk 0:02:24.8]} 25... h4 {[%clk 0:01:38.9]} 26. Nf1 {[%clk 0:02:23.8]} 26...
Bh6 {[%clk 0:01:25.2]} 27. Rcd1 {[%clk 0:02:21.3]} 27... Ne4 {[%clk 0:01:22.7]}
28. Bd4 {[%clk 0:02:10.8]} 28... Bf8 {[%clk 0:01:06.4]} 29. Ne3 {[%clk
0:02:09.7]} 29... Red8 {[%clk 0:00:47.8]} 30. Ng4 {[%clk 0:01:47.4]} 30... f5
{[%clk 0:00:32.2]} 31. Ne5 {[%clk 0:01:34.8]} 31... Kh7 {[%clk 0:00:30.5]} 32.
Be3 {[%clk 0:01:29]} 32... Rxd3 {[%clk 0:00:25]} 33. Rxd3 {[%clk 0:01:29.9]}
33... Rc7 {[%clk 0:00:24.9]} 34. f3 {[%clk 0:01:10.8]} 34... Ng3 {[%clk
0:00:23.2]} 35. Nd7 {[%clk 0:00:50.5]} 35... Bxb4 {[%clk 0:00:16.6]} 36. Nf6+
{[%clk 0:00:51.1]} 36... Kh8 {[%clk 0:00:11.2]} 37. Rd8+ {[%clk 0:00:51.2]}
37... Bf8 {[%clk 0:00:09.3]} 38. Rxf8+ {[%clk 0:00:51.2]} 38... Kg7 {[%clk
0:00:09.6]} 39. Ne8+ {[%clk 0:00:51.8]} 39... Kxf8 {[%clk 0:00:10.3]} 40. Nxc7
{[%clk 0:00:52.7]} 40... Ke7 {[%clk 0:00:10.8]} 41. Nd5+ {[%clk 0:00:52.1]}
41... Kd6 {[%clk 0:00:11.2]} 42. Nf4 {[%clk 0:00:48.2]} 42... g5 {[%clk
0:00:11.6]} 43. Nd3 {[%clk 0:00:48.7]} 43... f4 {[%clk 0:00:12.2]} 44. Bb6
{[%clk 0:00:45.5]} 44... Kd5 {[%clk 0:00:12]} 45. Kf2 {[%clk 0:00:45.2]} 45...
Nf5 {[%clk 0:00:12.1]} 46. Nc5 {[%clk 0:00:44.6]} 46... Nd6 {[%clk 0:00:11.7]}
47. Ne4 {[%clk 0:00:39.9]} 47... Nf7 {[%clk 0:00:06.4]} 48. Ke2 {[%clk
0:00:38.7]} 48... Kc4 {[%clk 0:00:07.1]} 49. Bc7 {[%clk 0:00:38.3]} 49... Kd5
{[%clk 0:00:06.2]} 50. Kd3 {[%clk 0:00:37.3]} 50... Kc6 {[%clk 0:00:06.7]} 51.
Bb6 {[%clk 0:00:37]} 51... Ne5+ {[%clk 0:00:06]} 52. Kd4 {[%clk 0:00:36.9]}
52... Nf7 {[%clk 0:00:06.9]} 53. Kc4 {[%clk 0:00:30.6]} 53... Ne5+ {[%clk
0:00:07]} 54. Kc3 {[%clk 0:00:31.2]} 54... Nf7 {[%clk 0:00:07.9]} 55. Kd4 {[%clk
0:00:18.1]} 55... Kd7 {[%clk 0:00:02.8]} 56. Kd5 {[%clk 0:00:18.3]} 56... Nh6
{[%clk 0:00:02.4]} 57. Nxg5 {[%clk 0:00:17.6]} 57... Nf5 {[%clk 0:00:03.2]} 58.
Ke5 {[%clk 0:00:16.3]} 58... Nd6 {[%clk 0:00:04]} 59. Kxf4 {[%clk 0:00:16.1]}
59... Nc4 {[%clk 0:00:04.9]} 60. Ne4 {[%clk 0:00:13.7]} 60... Ke6 {[%clk
0:00:04.4]} 61. Nc5+ {[%clk 0:00:11.9]} 61... Kd5 {[%clk 0:00:03.8]} 62. Nxb7
{[%clk 0:00:12.8]} 62... Nxb6 {[%clk 0:00:03]} 63. axb6 {[%clk 0:00:13.7]} 63...
Kc6 {[%clk 0:00:03.7]} 64. Na5+ {[%clk 0:00:13.8]} 64... Kxb6 {[%clk 0:00:04.3]}
65. Nb3 {[%clk 0:00:14.7]} 65... Kb5 {[%clk 0:00:04.7]} 66. Ke4 {[%clk
0:00:14.3]} 66... Kc4 {[%clk 0:00:05.4]} 67. Na5+ {[%clk 0:00:13.8]} 67... Kb5
{[%clk 0:00:05.6]} 68. f4 {[%clk 0:00:12]} 68... Kxa5 {[%clk 0:00:06]} 69. f5
{[%clk 0:00:12.9]} 69... Kb6 {[%clk 0:00:06.5]} 70. f6 {[%clk 0:00:13.5]} 70...
Kc6 {[%clk 0:00:07.4]} 71. f7 {[%clk 0:00:14.2]} 1-0

[Event "Late-Titled-Tuesday-Blitz-February-13-2024"]
[Site "Chess.com"]
[Date "2024.02.13"]
[Round "6"]
[White "Nouali_Mohamed"]
[Black "CRObliterator"]
[Result "1-0"]
[WhiteElo "2564"]
[BlackElo "2380"]
[TimeControl "180+1"]
[EndTime "15:08:13 PST"]
[Termination "Nouali_Mohamed won by checkmate"]

1. e4 {[%clk 0:02:59.3]} 1... d5 {[%clk 0:02:56.1]} 2. exd5 {[%clk 0:02:59.1]}
2... Qxd5 {[%clk 0:02:57]} 3. Nc3 {[%clk 0:02:59.6]} 3... Qd6 {[%clk 0:02:57.6]}
4. Bc4 {[%clk 0:03:00.1]} 4... Nf6 {[%clk 0:02:56.8]} 5. Nf3 {[%clk 0:02:59.3]}
5... a6 {[%clk 0:02:57.2]} 6. O-O {[%clk 0:02:58.6]} 6... b5 {[%clk 0:02:57.5]}
7. Bb3 {[%clk 0:02:59.2]} 7... Bb7 {[%clk 0:02:57.8]} 8. d4 {[%clk 0:02:58.1]}
8... e6 {[%clk 0:02:57.4]} 9. Bg5 {[%clk 0:02:50.2]} 9... Nbd7 {[%clk
0:02:56.9]} 10. Qe2 {[%clk 0:02:47.1]} 10... Be7 {[%clk 0:02:44.6]} 11. Ne5
{[%clk 0:02:45.8]} 11... h6 {[%clk 0:02:34.9]} 12. Bf4 {[%clk 0:02:28.9]} 12...
Nxe5 {[%clk 0:02:17.8]} 13. Bxe5 {[%clk 0:02:16.8]} 13... Qc6 {[%clk 0:02:07.4]}
14. f4 {[%clk 0:02:14.8]} 14... O-O {[%clk 0:01:58.8]} 15. f5 {[%clk 0:02:10.8]}
15... exf5 {[%clk 0:01:46.1]} 16. Rxf5 {[%clk 0:02:11.7]} 16... Nd7 {[%clk
0:01:43.8]} 17. Nd5 {[%clk 0:01:48.8]} 17... Bd6 {[%clk 0:01:33.8]} 18. Qg4
{[%clk 0:01:31.3]} 18... Nxe5 {[%clk 0:01:05.2]} 19. dxe5 {[%clk 0:01:29.5]}
19... Qc5+ {[%clk 0:01:00.2]} 20. Kh1 {[%clk 0:01:21.5]} 20... Bxd5 {[%clk
0:00:58.3]} 21. exd6 {[%clk 0:01:20.2]} 21... c6 {[%clk 0:00:45.4]} 22. Rd1
{[%clk 0:01:18.2]} 22... Qxd6 {[%clk 0:00:43.2]} 23. Bxd5 {[%clk 0:01:15.9]}
23... cxd5 {[%clk 0:00:42.9]} 24. Rfxd5 {[%clk 0:01:16.2]} 24... Qf6 {[%clk
0:00:33]} 25. c3 {[%clk 0:01:15.1]} 25... Rad8 {[%clk 0:00:31.5]} 26. Qh5 {[%clk
0:00:57.7]} 26... g6 {[%clk 0:00:20.5]} 27. Qf3 {[%clk 0:00:49.3]} 27... Qxf3
{[%clk 0:00:19.3]} 28. gxf3 {[%clk 0:00:50.2]} 28... Rxd5 {[%clk 0:00:20]} 29.
Rxd5 {[%clk 0:00:50.8]} 29... Re8 {[%clk 0:00:20.6]} 30. Rd2 {[%clk 0:00:46.4]}
30... Kg7 {[%clk 0:00:20.2]} 31. Kg2 {[%clk 0:00:46.1]} 31... Re6 {[%clk
0:00:20.5]} 32. Kf2 {[%clk 0:00:45.1]} 32... Kf6 {[%clk 0:00:21]} 33. Rd4 {[%clk
0:00:39.6]} 33... Ke7 {[%clk 0:00:20.1]} 34. a4 {[%clk 0:00:39]} 34... bxa4
{[%clk 0:00:18.4]} 35. Rxa4 {[%clk 0:00:39.9]} 35... Rb6 {[%clk 0:00:18.8]} 36.
b4 {[%clk 0:00:40.2]} 36... f5 {[%clk 0:00:18.6]} 37. Ke3 {[%clk 0:00:39.1]}
37... Kd6 {[%clk 0:00:18.8]} 38. Kd4 {[%clk 0:00:39.6]} 38... g5 {[%clk
0:00:17.9]} 39. c4 {[%clk 0:00:36.7]} 39... Rc6 {[%clk 0:00:17.9]} 40. c5+
{[%clk 0:00:36.5]} 40... Ke6 {[%clk 0:00:17.2]} 41. Ra1 {[%clk 0:00:33.8]} 41...
g4 {[%clk 0:00:15.8]} 42. Re1+ {[%clk 0:00:33.4]} 42... Kf6 {[%clk 0:00:16]} 43.
Kd5 {[%clk 0:00:28.3]} 43... Rc8 {[%clk 0:00:10.3]} 44. f4 {[%clk 0:00:28.1]}
44... Rd8+ {[%clk 0:00:09.2]} 45. Kc4 {[%clk 0:00:28.4]} 45... Rc8 {[%clk
0:00:02.9]} 46. Rd1 {[%clk 0:00:27.2]} 46... h5 {[%clk 0:00:03.3]} 47. Rd6+
{[%clk 0:00:27.4]} 47... Kf7 {[%clk 0:00:03.9]} 48. Rxa6 {[%clk 0:00:27.6]}
48... h4 {[%clk 0:00:04.4]} 49. b5 {[%clk 0:00:26.6]} 49... g3 {[%clk
0:00:04.4]} 50. hxg3 {[%clk 0:00:27.5]} 50... hxg3 {[%clk 0:00:05]} 51. Ra7+
{[%clk 0:00:28.1]} 51... Kg6 {[%clk 0:00:04.9]} 52. Ra2 {[%clk 0:00:29]} 52...
Kh5 {[%clk 0:00:04.7]} 53. c6 {[%clk 0:00:28.6]} 53... Kg4 {[%clk 0:00:05]} 54.
Kc5 {[%clk 0:00:29.2]} 54... Kxf4 {[%clk 0:00:05.3]} 55. b6 {[%clk 0:00:29.4]}
55... Kf3 {[%clk 0:00:05.8]} 56. b7 {[%clk 0:00:29]} 56... Re8 {[%clk
0:00:06.5]} 57. c7 {[%clk 0:00:28.9]} 57... Re2 {[%clk 0:00:06.2]} 58. Rxe2
{[%clk 0:00:28.3]} 58... Kxe2 {[%clk 0:00:07.1]} 59. b8=Q {[%clk 0:00:26]} 59...
g2 {[%clk 0:00:08]} 60. Qb2+ {[%clk 0:00:25.6]} 60... Kf1 {[%clk 0:00:08.3]} 61.
Qc1+ {[%clk 0:00:23]} 61... Kf2 {[%clk 0:00:08.2]} 62. c8=Q {[%clk 0:00:21.5]}
62... g1=Q {[%clk 0:00:08.2]} 63. Qxf5+ {[%clk 0:00:22]} 63... Ke2+ {[%clk
0:00:08.1]} 64. Qxg1 {[%clk 0:00:22.9]} 64... Kd2 {[%clk 0:00:07.4]} 65. Qff2+
{[%clk 0:00:20.7]} 65... Kd3 {[%clk 0:00:07.4]} 66. Qd4+ {[%clk 0:00:19.2]}
66... Kc2 {[%clk 0:00:07]} 67. Qgd1# {[%clk 0:00:19.3]} 1-0

[Event "Late-Titled-Tuesday-Blitz-February-13-2024"]
[Site "Chess.com"]
[Date "2024.02.13"]
[Round "6"]
[White "The_Straightforward_Rook"]
[Black "reevecanada"]
[Result "1-0"]
[WhiteElo "2455"]
[BlackElo "2563"]
[TimeControl "180+1"]
[EndTime "15:08:20 PST"]
[Termination "The_Straightforward_Rook won by checkmate"]

1. Nf3 {[%clk 0:02:56.5]} 1... d5 {[%clk 0:02:59.8]} 2. d4 {[%clk 0:02:55.8]}
2... c5 {[%clk 0:02:58.4]} 3. c3 {[%clk 0:02:54.9]} 3... cxd4 {[%clk 0:02:58]}
4. cxd4 {[%clk 0:02:55.8]} 4... Nf6 {[%clk 0:02:58.4]} 5. Nc3 {[%clk 0:02:55.9]}
5... g6 {[%clk 0:02:58.5]} 6. Bf4 {[%clk 0:02:55.4]} 6... Bg7 {[%clk 0:02:58]}
7. h3 {[%clk 0:02:55.2]} 7... O-O {[%clk 0:02:56.7]} 8. e3 {[%clk 0:02:55.9]}
8... Nc6 {[%clk 0:02:53.4]} 9. Bd3 {[%clk 0:02:56.3]} 9... b6 {[%clk 0:02:52.8]}
10. O-O {[%clk 0:02:56.1]} 10... Bb7 {[%clk 0:02:53.5]} 11. Rc1 {[%clk
0:02:56.5]} 11... Rc8 {[%clk 0:02:54]} 12. a3 {[%clk 0:02:55.3]} 12... a6 {[%clk
0:02:53.5]} 13. Qe2 {[%clk 0:02:52.3]} 13... b5 {[%clk 0:02:50.4]} 14. Rc2
{[%clk 0:02:52.4]} 14... Na5 {[%clk 0:02:47.3]} 15. Ne5 {[%clk 0:02:40]} 15...
Nd7 {[%clk 0:02:39.1]} 16. Nxd7 {[%clk 0:02:19.5]} 16... Qxd7 {[%clk 0:02:32.3]}
17. a4 {[%clk 0:02:19.7]} 17... b4 {[%clk 0:02:28.7]} 18. Nb1 {[%clk 0:02:19.3]}
18... Rxc2 {[%clk 0:02:19.8]} 19. Qxc2 {[%clk 0:02:19.5]} 19... Rc8 {[%clk
0:02:14.3]} 20. Qe2 {[%clk 0:02:18.7]} 20... Rc6 {[%clk 0:01:55.1]} 21. Nd2
{[%clk 0:02:15.9]} 21... Rb6 {[%clk 0:01:51]} 22. Rc1 {[%clk 0:02:12.1]} 22...
Qxa4 {[%clk 0:01:39.4]} 23. Bc7 {[%clk 0:01:59.9]} 23... Rc6 {[%clk 0:01:28.5]}
24. Qe1 {[%clk 0:01:44.6]} 24... Rxc1 {[%clk 0:01:22.5]} 25. Qxc1 {[%clk
0:01:45.5]} 25... Qc6 {[%clk 0:01:21.5]} 26. Qxc6 {[%clk 0:01:33.7]} 26... Nxc6
{[%clk 0:01:22.4]} 27. Nb3 {[%clk 0:01:32.6]} 27... Bc8 {[%clk 0:01:11.7]} 28.
Na5 {[%clk 0:01:26.7]} 28... Nxa5 {[%clk 0:01:04.1]} 29. Bxa5 {[%clk 0:01:27.6]}
29... e5 {[%clk 0:01:04]} 30. Bb6 {[%clk 0:01:01]} 30... exd4 {[%clk 0:00:55.7]}
31. exd4 {[%clk 0:01:01.9]} 31... Bf8 {[%clk 0:00:54.6]} 32. Kf1 {[%clk
0:01:00.1]} 32... Bd6 {[%clk 0:00:53.7]} 33. Ke2 {[%clk 0:00:58.3]} 33... Kf8
{[%clk 0:00:53]} 34. Kd2 {[%clk 0:00:58.2]} 34... Ke7 {[%clk 0:00:52]} 35. Kc2
{[%clk 0:00:58.7]} 35... Kd7 {[%clk 0:00:46.7]} 36. Kb3 {[%clk 0:00:58.8]} 36...
Kc6 {[%clk 0:00:46.4]} 37. Ba5 {[%clk 0:00:59.4]} 37... Bb7 {[%clk 0:00:45.5]}
38. Bxb4 {[%clk 0:00:59.3]} 38... Bxb4 {[%clk 0:00:46.1]} 39. Kxb4 {[%clk
0:01:00.2]} 39... Kb6 {[%clk 0:00:46.2]} 40. f4 {[%clk 0:00:51.8]} 40... a5+
{[%clk 0:00:41]} 41. Kc3 {[%clk 0:00:49.4]} 41... Ba6 {[%clk 0:00:40]} 42. Bxa6
{[%clk 0:00:23]} 42... Kxa6 {[%clk 0:00:36.9]} 43. g4 {[%clk 0:00:18.2]} 43...
Kb5 {[%clk 0:00:31.6]} 44. Kb3 {[%clk 0:00:18.5]} 44... a4+ {[%clk 0:00:29.1]}
45. Ka3 {[%clk 0:00:18.9]} 45... Ka5 {[%clk 0:00:28]} 46. b3 {[%clk 0:00:16.6]}
46... axb3 {[%clk 0:00:25.2]} 47. Kxb3 {[%clk 0:00:16.8]} 47... Kb5 {[%clk
0:00:25.7]} 48. g5 {[%clk 0:00:17.2]} 48... Ka5 {[%clk 0:00:20.1]} 49. Ka3
{[%clk 0:00:17.8]} 49... Kb5 {[%clk 0:00:20.5]} 50. Kb3 {[%clk 0:00:18.5]} 50...
Kc6 {[%clk 0:00:18.7]} 51. Ka4 {[%clk 0:00:17.8]} 51... Kb6 {[%clk 0:00:07.4]}
52. Kb4 {[%clk 0:00:15.2]} 52... Kc6 {[%clk 0:00:06.5]} 53. Ka5 {[%clk
0:00:14.8]} 53... Kd6 {[%clk 0:00:07]} 54. Kb5 {[%clk 0:00:15.2]} 54... Ke6
{[%clk 0:00:07.7]} 55. Kc5 {[%clk 0:00:15.7]} 55... Kf5 {[%clk 0:00:07.6]} 56.
Kxd5 {[%clk 0:00:16.3]} 56... Kxf4 {[%clk 0:00:08.3]} 57. Kc6 {[%clk 0:00:17]}
57... Kxg5 {[%clk 0:00:08.5]} 58. d5 {[%clk 0:00:17.8]} 58... f5 {[%clk
0:00:08.6]} 59. d6 {[%clk 0:00:18.5]} 59... f4 {[%clk 0:00:08.3]} 60. d7 {[%clk
0:00:19.2]} 60... Kh4 {[%clk 0:00:08.2]} 61. d8=Q+ {[%clk 0:00:18.9]} 61... Kxh3
{[%clk 0:00:08.5]} 62. Qf8 {[%clk 0:00:14.9]} 62... Kg3 {[%clk 0:00:06.3]} 63.
Kd5 {[%clk 0:00:15.5]} 63... g5 {[%clk 0:00:06.1]} 64. Ke4 {[%clk 0:00:15.8]}
64... h5 {[%clk 0:00:06.7]} 65. Qf5 {[%clk 0:00:12.2]} 65... Kh4 {[%clk
0:00:05.2]} 66. Kf3 {[%clk 0:00:10.1]} 66... g4+ {[%clk 0:00:05.2]} 67. Kxf4
{[%clk 0:00:10.5]} 67... g3 {[%clk 0:00:06.1]} 68. Qg5+ {[%clk 0:00:10.9]} 68...
Kh3 {[%clk 0:00:04.8]} 69. Qxg3# {[%clk 0:00:11.4]} 1-0